Workbook

Sheet Do Komendanta
A1: ZATWIERDZAM | G1: Szczecin, 27.11.2024r
A2: ……………………………………… | G2: (miejscowość, data)
A3: (podpis kierownika jednostki organizacyjnej Policji/ osoby upoważnionej)
A5: WYKAZ SPRZĘTU TRANSPORTOWEGO ZBĘDNEGO LUB ZUŻYTEGO PRZEZNACZONEGO DO DALSZEGO ZAGOSPODAROWANIA
A6: Na podstawie przepisów rozporządzenia Rady Ministrów z dnia 21 października 2019 r. w sprawie szczegółowego sposobu gospodarowania składnikami rzeczowymi majątku ruchomego Skarbu Państwa (Dz.U. z 2023 r. poz. 2303 i 2678), komisja przedkłada wykaz sprzętu transportowego uznany za zbędny/zużyty.
A7: LP | B7: Marka i typ pojazdu | C7: Rok produkcji | D7: Numer wewnętrzny | E7: Sprzęt zbędny/zużyty | F7: Propozycja sposobu zagospodarowania | G7: UWAGI | H7: WARTOŚĆ SPRZĘTU/ CENA WYWOŁAWCZA | I7: CENA WYWOŁAWCZA W II PRZETARGU | J7: NR REJ. | K7: UWAGI-ROZLICZONY | L7: ROZLICZONY | M7: DATA PIERWSZEJ REJESTRACJI | N7: VIN | O7: POJEMNOŚĆ | P7: PRZEBIEG
A8: 1 | B8: FORD FOCUS | C8: 2005 | D8: 5045 | E8: zużyty | F8: sprzedaż | G8: Pojzad niesprawny SWT Koszalin | H8: 1700 | I8: =H8*0.8 -> 1360 | J8: ZK 27899 | L8: NIE | M8: 2005-12-21 | N8: WF05XXGCD55U45230 | O8: 1596 | P8: 247431
A9: 2 | B9: FIAT STILO | C9: 2006 | D9: 5082 | E9: zużyty | F9: sprzedaż | G9: Pojzad niesprawny SWT Koszalin | H9: 1700 | I9: =H9*0.8 -> 1360 | J9: ZPL 81FV | L9: NIE | M9: 2006-12-07 | N9: ZFA19200000651308 | O9: 1598 | P9: 202176
A10: 3 | B10: FIAT DUCATO | C10: 2008 | D10: 5208 | E10: zużyty | F10: sprzedaż | G10: Pojzad niesprawny SWT Koszalin | H10: 6100 | I10: =H10*0.8 -> 4880 | J10: ZKL 29LA | L10: NIE | M10: 2008-12-09 | N10: ZFA25000001559856 | O10: 2999 | P10: 262476
A11: 4 | B11: FIAT DUCATO | C11: 2008 | D11: 5210 | E11: zużyty | F11: sprzedaż | G11: Pojzad niesprawny SWT Koszalin | H11: 5700 | I11: =H11*0.8 -> 4560 | J11: ZWA 51CK | L11: NIE | M11: 2008-12-09 | N11: ZFA25000001547596 | O11: 2999 | P11: 221037
A12: 5 | B12: FIAT DUCATO | C12: 2008 | D12: 5375 | E12: zużyty | F12: sprzedaż | G12: Pojzad niesprawny SWT Koszalin | H12: 7400 | I12: =H12*0.8 -> 5920 | J12: HPW A567 | L12: NIE | M12: 2009-02-23 | N12: ZFA25000001593746 | O12: 2999 | P12: 381947
A13: 6 | B13: HONDA CBF 1000A | C13: 2010 | D13: 5682 | E13: zużyty | F13: sprzedaż | G13: Pojzad niesprawny SWT Koszalin | H13: 10000 | I13: =H13*0.8 -> 8000 | J13: HPW M010 | L13: NIE | M13: 2011-03-02 | N13: ZDCSC58B0AF412603 | O13: 2010 | P13: 86419
A14: 7 | B14: FIAT BRAWO 1,9 ON | C14: 2009 | D14: 5468 | E14: zużyty | F14: sprzedaż | G14: Pojzad niesprawny SWT Koszalin | H14: 3700 | I14: =H14*0.8 -> 2960 | J14: ZSZ 53FC | L14: NIE | M14: 2009-06-09 | N14: ZFA19800004214172 | O14: 1910 | P14: 198352
A15: 8 | B15: FIAT DUCATO | C15: 2009 | D15: 5471 | E15: zużyty | F15: sprzedaż | G15: Pojzad niesprawny SWT Koszalin | H15: 5300 | I15: =H15*0.8 -> 4240 | J15: HPW02WA | L15: TAK | M15: 2009-06-10 | N15: ZFA25000001631115 | O15: 2999 | P15: 410727
A16: 9 | B16: FIAT DUCATO | C16: 2009 | D16: 5474 | E16: zużyty | F16: sprzedaż | G16: Pojzad niesprawny SWT Koszalin | H16: 6400 | I16: =H16*0.8 -> 5120 | J16: HPW51WA | L16: TAK | M16: 2009-06-10 | N16: ZFA25000001632524 | O16: 2999 | P16: 402052
A17: 10 | B17: KIA CEE'D 1,6 | C17: 2013 | D17: 5803 | E17: zużyty | F17: sprzedaż | G17: Pojzad niesprawny SWT Koszalin | H17: 11500 | I17: =H17*0.8 -> 9200 | J17: HPW A858 | L17: NIE | M17: 2013-12-05 | N17: U5YHM813AEL072410 | O17: 1591 | P17: 296741
A18: 11 | B18: PRZYCZEPA WIOLA W-600 | C18: 2009 | D18: 5661 | E18: zbędny | F18: sprzedaż | G18: Pojzad niesprawny SWT Koszalin | H18: 3200 | I18: =H18*0.8 -> 2560 | J18: HPW A680 | L18: TAK | M18: 2010-01-06 | N18: SUC075A0F90011170 | O18: BRAK | P18: BRAK
A19: 12 | B19: PRZYCZEPA WIOLA W-598 | C19: 2009 | D19: 5655 | E19: zbędny | F19: sprzedaż | G19: Pojzad niesprawny SWT Koszalin | H19: 3200 | I19: =H19*0.8 -> 2560 | J19: HPW A531 | L19: TAK | M19: 2010-01-06 | N19: SUC075A0F90011173 | O19: BRAK | P19: BRAK
A20: 13 | B20: PRZYCZEPA WIOLA W-599 | C20: 2009 | D20: 5657 | E20: zbędny | F20: sprzedaż | G20: Pojzad niesprawny SWT Koszalin | H20: 3200 | I20: =H20*0.8 -> 2560 | J20: HPW A441 | L20: TAK | M20: 2010-01-06 | N20: SUC075A0F90011172 | O20: BRAK | P20: BRAK
A21: 14 | B21: WV T -4 | C21: 2001 | D21: 4585 | E21: zużyty | F21: sprzedaż | G21: Pojzad niesprawny SWT Koszalin | H21: 10200 | I21: =H21*0.8 -> 8160 | J21: HPW A251 | L21: NIE | M21: 2001-02-23 | N21: WV1ZZZ7071X113933 | O21: 2461 | P21: 251160
A22: 15 | B22: OPEL ASTRA 1,6 | C22: 2004 | D22: 5829 | E22: zużyty | F22: sprzedaż | G22: Pojzad niesprawny SWT Szczecin | H22: 4300 | I22: =H22*0.8 -> 3440 | J22: ZK 5718E | L22: TAK | M22: 2004-04-20 | N22: W0L0TGF484G049618 | O22: 1598 | P22: 184380
A23: 16 | B23: KIA CEE'D | C23: 2009 | D23: 5609 | E23: zużyty | F23: sprzedaż | G23: Pojzad niesprawny SWT Szczecin | H23: 6500 | I23: =H23*0.8 -> 5200 | J23: HPW A210 | L23: TAK | M23: 2009-10-20 | N23: U5YFF52529L112353 | O23: 1991 | P23: 237117
A24: 17 | B24: VW GOLF 1,4 TSI | C24: 2008 | D24: 5181 | E24: zużyty | F24: sprzedaż | G24: Pojzad niesprawny SWT Szczecin | H24: 7100 | I24: =H24*0.8 -> 5680 | J24: ZS 1058X | L24: NIE | M24: 2008-05-12 | N24: WVWZZZ1KZ8P102366 | O24: 1390 | P24: 207395
A25: 18 | B25: KIA CEE'D 2,0 ON | C25: 2009 | D25: 5485 | E25: zużyty | F25: sprzedaż | G25: Pojzad niesprawny SWT Szczecin | H25: 5900 | I25: =H25*0.8 -> 4720 | J25: ZSL 56EP | L25: NIE | M25: 2009-06-16 | N25: U5YFF2U529L169672 | O25: 1991 | P25: 177389
A26: 19 | B26: FIAT BRAWO 1,9 ON | C26: 2010 | D26: 5413 | E26: zużyty | F26: sprzedaż | G26: Pojzad niesprawny SWT Szczecin | H26: 7700 | I26: =H26*0.8 -> 6160 | J26: ZGR 13ES | L26: NIE | M26: 2009-03-20 | N26: ZFA19800004214134 | O26: 1910 | P26: 187293
A27: 20 | B27: KIA CEE'D 2,0 ON | C27: 2008 | D27: 5285 | E27: zużyty | F27: sprzedaż | G27: Pojzad niesprawny SWT Szczecin | H27: 7900 | I27: =H27*0.8 -> 6320 | J27: ZS 21648 | L27: TAK | M27: 2009-01-06 | N27: U5YFF24529L160385 | O27: 1991 | P27: 310438
A28: 21 | B28: KIA CEE'D 2,0 ON | C28: 2008 | D28: 5280 | E28: zużyty | F28: sprzedaż | G28: Pojzad niesprawny SWT Szczecin | H28: 9000 | I28: =H28*0.8 -> 7200 | J28: ZST 93CV | L28: TAK | M28: 2009-01-07 | N28: U5YFF24529L160381 | O28: 1991 | P28: 247849
A29: 22 | B29: FIAT DUCATO | C29: 2009 | D29: 5392 | E29: zużyty | F29: sprzedaż | G29: Pojzad niesprawny SWT Szczecin | H29: 9400 | I29: =H29*0.8 -> 7520 | J29: HPW A188 | L29: TAK | M29: 2009-02-24 | N29: ZFA25000001594520 | O29: 2999 | P29: 234835
A30: 23 | B30: MITSHUBISHI COLT | C30: 2008 | D30: 6683 | E30: zużyty | F30: sprzedaż | G30: Pojzad niesprawny SWT Szczecin | H30: 4600 | I30: =H30*0.8 -> 3680 | J30: BRAK | L30: TAK | M30: BRAK | N30: XMCXNZ36A9F009666 | O30: 1499 | P30: 228830
A31: 24 | B31: KIA CEE'D 1,6 | C31: 2015 | D31: 5990 | E31: zużyty | F31: sprzedaż | G31: Pojzad niesprawny SWT Szczecin | H31: 4400 | I31: =H31*0.8 -> 3520 | J31: HPW A109 | L31: NIE | M31: 2015-10-20 | N31: U5YHM813AGL155178 | O31: 1591 | P31: 184120
A32: 25 | B32: KIA CEE'D 1,6 | C32: 2015 | D32: 5958 | E32: zużyty | F32: sprzedaż | G32: Pojzad niesprawny SWT Szczecin | H32: 12800 | I32: =H32*0.8 -> 10240 | J32: HPW A833 | L32: NIE | M32: 2015-09-21 | N32: U5YHM813AGL152011 | O32: 1591 | P32: 309439
A34: Miejsce postoju sprzętu : Stacja Obsługi nr 1 w Szczecinie ul. Wernyhory 5 Stacja Obsługi nr 2 w Koszalinie ul. Krakusa i Wandy 11
F37: Podpisy członków komisji:
F39: 1) ………………………………………
F41: 2) ………………………………………
F43: 3) ………………………………………

Sheet ogłoszenie
A1: OGŁOSZENIE O PRZETARGU PUBLICZNYM (zagospodarowanie poprzez sprzedaż)
A3: 1) Nazwa i siedziba jednostki:
A4: Komenda Wojewódzka Policji w Szczecinie Małopolska 47, 70-515 Szczecin.
A5: 2) Miejsce i termin przeprowadzenia przetargu publicznego:
A6: Wydział Transportu Komendy Wojewódzkiej Policji w Szczecinie, 71-540 Szczecin, ul. Wernyhory 5. Termin: 30 stycznia 2025 roku o godzinie 10:00 pokój nr 1.
A7: 3) Rodzaj, typy i ilość składników rzeczowych majątku ruchomego, będących przedmiotem sprzedaży:
A8: LP | B8: MARKA I TYP POJAZDU | C8: ROK PROD. | D8: NR WEW. | E8: VIN | F8: POJEMNOŚĆ | G8: PRZEBIEG | H8: UWAGI | I8: WARTOŚĆ SPRZĘTU/ CENA WYWOŁAWCZA
A9: 1 | B9: FORD FOCUS | C9: 2005 | D9: 5045 | E9: ZK 27899 | F9: 1596 | G9: 247431 | H9: Pojzad niesprawny SWT Koszalin | I9: 1360
A10: 2 | B10: FIAT STILO | C10: 2006 | D10: 5082 | E10: ZPL 81FV | F10: 1598 | G10: 202176 | H10: Pojzad niesprawny SWT Koszalin | I10: 1360
A11: 3 | B11: HONDA CBF 1000A | C11: 2010 | D11: 5682 | E11: HPW M010 | F11: 2010 | G11: 86419 | H11: Pojzad niesprawny SWT Koszalin | I11: 8000
A12: 4 | B12: FIAT BRAWO 1,9 ON | C12: 2009 | D12: 5468 | E12: ZSZ 53FC | F12: 1910 | G12: 198352 | H12: Pojzad niesprawny SWT Koszalin | I12: 2960
A13: 5 | B13: KIA CEE'D 1,6 | C13: 2013 | D13: 5803 | E13: HPW A858 | F13: 1591 | G13: 296741 | H13: Pojzad niesprawny SWT Koszalin | I13: 9200
A14: 6 | B14: PRZYCZEPA WIOLA W-600 | C14: 2009 | D14: 5661 | E14: HPW A680 | H14: Pojzad niesprawny SWT Koszalin | I14: 2560
A15: 7 | B15: PRZYCZEPA WIOLA W-598 | C15: 2009 | D15: 5655 | E15: HPW A531 | H15: Pojzad niesprawny SWT Koszalin | I15: 2560
A16: 8 | B16: PRZYCZEPA WIOLA W-599 | C16: 2009 | D16: 5657 | E16: HPW A441 | H16: Pojzad niesprawny SWT Koszalin | I16: 2560
A17: 9 | B17: WV T -4 | C17: 2001 | D17: 4585 | E17: HPW A251 | F17: 2461 | G17: 251160 | H17: Pojzad niesprawny SWT Koszalin | I17: 8160
A18: 10 | B18: OPEL ASTRA 1,6 | C18: 2004 | D18: 5829 | E18: ZK 5718E | F18: 1598 | G18: 184380 | H18: Pojzad niesprawny SWT Szczecin | I18: 3440
A19: 11 | B19: KIA CEE'D | C19: 2009 | D19: 5609 | E19: HPW A210 | F19: 1991 | G19: 237117 | H19: Pojzad niesprawny SWT Szczecin | I19: 5200
A20: 12 | B20: VW GOLF 1,4 TSI | C20: 2008 | D20: 5181 | E20: ZS 1058X | F20: 1390 | G20: 207395 | H20: Pojzad niesprawny SWT Szczecin | I20: 5680
A21: 13 | B21: KIA CEE'D 2,0 ON | C21: 2009 | D21: 5485 | E21: ZSL 56EP | F21: 1991 | G21: 177389 | H21: Pojzad niesprawny SWT Szczecin | I21: 4720
A22: 14 | B22: FIAT BRAWO 1,9 ON | C22: 2010 | D22: 5413 | E22: ZGR 13ES | F22: 1910 | G22: 187293 | H22: Pojzad niesprawny SWT Szczecin | I22: 6160
A23: 15 | B23: KIA CEE'D 2,0 ON | C23: 2009 | D23: 5285 | E23: ZS 21648 | F23: 1991 | G23: 310438 | H23: Pojzad niesprawny SWT Szczecin | I23: 6320
A24: 16 | B24: KIA CEE'D 2,0 ON | C24: 2008 | D24: 5280 | E24: ZST 93CV | F24: 1991 | G24: 247849 | H24: Pojzad niesprawny SWT Szczecin | I24: 9000
A25: 17 | B25: MITSHUBISHI COLT | C25: 2009 | D25: 6683 | E25: BRAK | F25: 1499 | G25: 228830 | H25: Pojzad niesprawny SWT Szczecin | I25: 3680
A26: 18 | B26: KIA CEE'D 1,6 | C26: 2015 | D26: 5990 | E26: HPW A109 | F26: 1591 | G26: 184120 | H26: Pojzad niesprawny SWT Szczecin | I26: 3520
A27: 19 | B27: KIA CEE'D 1,6 | C27: 2015 | D27: 5958 | E27: HPW A833 | F27: 1591 | G27: 309439 | H27: Pojzad niesprawny SWT Szczecin | I27: 10240
A29: 4) Miejsce i termin, w którym można obejrzeć składniki rzeczowe majątku ruchomego, będące przedmiotem sprzedaży:
A30: Wydział Transportu Komendy Wojewódzkiej Policji w Szczecinie: Sekcja Wsparcia Technicznego w Szczecinie , 71-240 Szczecin ul. Wernyhory 5 oraz Sekcja Wsparcia Technicznego w Koszalinie, 75-078 Koszalin ul. Krakusa i Wandy 11, wyłącznie w dniach 28-29 stycznia 2025 roku w godzinach od 8.00 do 15.00. Istnieje możliwość skorzystania z policyjnego zaplecza obsługowo-naprawczego w przypadku konieczności obejrzenia pojazdów bardziej szczegółowo. Wszelkich informacji dotyczących stanu technicznego i kompletności pojazdów można uzyskać od: Kierownika sekcji wsparcia technicznego w Szczecinie - Wydziału Transportu KWP w Szczecinie Pana Jacka Tiede – tel. 47-78-16-120, Kierownika sekcji wsparcia technicznego w Koszalinie - Wydziału Transportu KWP w Szczecinie Pana Piotra Wnuka – tel. 47-78-41-797.
A32: 5) Wysokość wadium oraz formę i termin jego wniesienia:
A33: Warunkiem przystąpienia do przetargu publicznego jest wpłacenie wadium tylko i wyłącznie w gotówce w wysokości 10% ceny wywoławczej składnika rzeczowego majątku ruchomego, będącego przedmiotem sprzedaży, najpóźniej w dniu przetargu przed jego rozpoczęciem poprzez dokonanie wpłaty na konto Komendy Wojewódzkiej Policji w Szczecinie Małopolska 47, 70-515 Szczecin o nr: 33 1010 1599 0025 0913 9120 0000 W dowodzie wpłaty winien być wpisany nr wewnętrzny sprzętu i nr pozycji z ogłoszenia, którego wadium dotyczy oraz dane: Imię i nazwisko, dokładny adres, nr telefonu, a w przypadku firmy także nazwę i NIP. Do każdej pozycji z ogłoszenia wymagany jest osobny dowód wpłaty. Komisja przetargowa przed przystąpieniem do przetargu publicznego sprawdza wniesienie wymaganego wadium na podstawie przedłożonych dowodów wpłaty (konieczne jest dostarczenie kopii, które Komisja zatrzymuje w dniu przetargu). W przypadku złożenia najkorzystniejszej oferty, należy wpłacić pozostałą kwotę nabycia na konto: 44 1010 1599 0025 0922 3100 0000 Wpisując w tytule nr faktury wystawionej przez KWP w Szczecinie.
A34: 6) Wymagania jakim powinna odpowiadać oferta, termin, miejsce jej złożenia:
A35: Wypełnioną i podpisaną ofertę składa się w zaklejonej kopercie. Koperta powinna być oznakowana: „OFERTA NA SPRZEDAŻ POJAZDÓW – NIE OTWIERAĆ PRZED 30.01.25 r. GODZ.10.10”. Wzór oferty określono w załączniku nr 1 do ogłoszenia. Ofertę można składać od dnia umieszczenia ogłoszenia o przetargu publicznym w Biuletynie Informacji Publicznej do dnia 30 stycznia 2025 roku do godziny 9:30 w Wydziale Transportu Komendy Wojewódzkiej Policji w Szczecinie, 71-540 Szczecin ul. Wernyhory 5.
A37: 7) Dodatkowe informacje:
A38: Wadium złożone przez oferentów, których oferty nie zostały wybrane lub zostały odrzucone, zwraca się w terminie 7 dni, odpowiednio od dnia dokonania wyboru lub odrzucenia oferty. Wadium złożone przez nabywcę zalicza się na poczet ceny. Wadium nie podlega zwrotowi, w przypadku gdy oferent, który wygrał przetarg publiczny, uchyli się od zawarcia umowy Sprzedaży. Komisja przetargowa odrzuci ofertę, jeżeli została złożona po wyznaczonym terminie, w niewłaściwym miejscu lub przez oferenta, który nie wniósł wadium, nie zawiera danych i dokumentów, które zostały określone we wzorze oferty, są one niekompletne, nieczytelne lub budzą inną wątpliwość, zaś jej uzupełnienie lub złożenie wyjaśnień mogłoby prowadzić do uznania jej za nową ofertę. Komisja przetargowa zawiadamia niezwłocznie oferenta o odrzuceniu oferty. Przetarg publiczny może się odbyć, jeżeli zostanie złożona co najmniej jedna oferta. Komisja przetargowa wybiera oferenta, który zaoferował najwyższą cenę. Organizatorowi przetargu publicznego przysługuje prawo zamknięcia tego przetargu bez wybrania którejkolwiek z ofert, bez podania przyczyn. Nabywca zobowiązany jest zapłacić cenę nabycia (różnicę pomiędzy wpłaconym wadium, a ceną wskazaną w ofercie) niezwłocznie, jednak nie później niż w ciągu 7 dni od dnia zawarcia umowy sprzedaży. Wydanie przedmiotu sprzedaży następuje niezwłocznie po zapłaceniu przez nabywcę ceny nabycia lecz nie wcześniej niż po zatwierdzeniu przez kierownika jednostki protokołu z przeprowadzonego przetargu publicznego. Wszystkie pojazdy są wyrejestrowane i nie nadają się do bezpośredniego użytkowania, gdyż są one niesprawne i niekompletne.
A40: 8) Podstawa prawna:
A41: Rozporządzenia Rady Ministrów z 19 lutego 2021 r (Dz. U. Z 2023 r. poz. 2303 i 2678) w sprawie szczegółowego sposobu gospodarowania składnikami rzeczowymi majątku ruchomego Skarbu Państwa

Sheet Oferta
A1: OFERTA PISEMNA ZŁOŻONA W TOKU PRZETARGU PUBLICZNEGO (zagospodarowanie poprzez sprzedaż)
A3: Imię i nazwisko, dokładny adres, nr telefonu, adres e-mail, a w przypadku firmy także nazwę i NIP
A4: Nr wewnętrzny sprzętu i nr pozycji z ogłoszenia, którego oferta dotyczy:
A5: Oferowana cena w brutto i warunki jej zapłaty:
A7: Oświadczam, że zapoznałam/łem się ze stanem składnika rzeczowego majątku ruchomego będącego przedmiotem przetargu publicznego. Ponoszę odpowiedzialność za skutki wynikające z rezygnacji z zapoznania się ze stanem tego składnika.
A9: Zwrot wadium/ odsetek proszę wpłacic na konto………………………………………………...
B12: ……………………………………………………….
B13: Czytelny podpis oferenta
A15: UWAGA:
A16: Wypełnioną i podpisaną ofertę składa się w zaklejonej kopercie w miejscu i terminie określonym w ogłoszeniu o przetargu publicznym.
A25: Wydział Transportu Komendy Wojewódzkiej Policji w Szczecinie: Sekcja Wsparcia Technicznego w Szczecinie , 71-240 Szczecin ul. Wernyhory 5 oraz Sekcja Wsparcia Technicznego w Koszalinie, 75-078 Koszalin ul. Krakusa i Wandy 11, wyłącznie w dniach 8-9 września 2024 roku w godzinach od 8.00 do 15.00. Istnieje możliwość skorzystania z policyjnego zaplecza obsługowo-naprawczego w przypadku konieczności obejrzenia pojazdów bardziej szczegółowo. Wszelkich informacji dotyczących stanu technicznego i kompletności pojazdów można uzyskać od: Kierownika sekcji wsparcia technicznego w Szczecinie - Wydziału Transportu KWP w Szczecinie Pana Jacka Tiede – tel. 47-78-16-120, Kierownika sekcji wsparcia technicznego w Koszalinie - Wydziału Transportu KWP w Szczecinie Pana Piotra Wnuka – tel. 47-78-41-797.
A36: Rozporządzenia Rady Ministrów z 19 lutego 2021 r (Dz. U. Z 2023 r. poz. 2303 i 2678) w sprawie szczegółowego sposobu gospodarowania składnikami rzeczowymi majątku ruchomego Skarbu Państwa

Sheet Protokół
A1: OGŁOSZENIE O ROZSTRZYGNIĘCIU PRZETARGU PUBLICZNEGO Z DNIA ……………… (zagospodarowanie poprzez sprzedaż)
A3: PROTOKÓŁ Z PRZEBIEGU PRZETARGU PUBLICZNEGO W CELU DOKONANIA SPRZEDAŻY ZBĘDNYCH LUB ZUŻYTYCH SKŁADNIKÓW RZECZOWYCH MAJĄTKU RUCHOMEGO
A5: W dniu 07 października 2024 roku w Wydziale Transportu Komendy Wojewódzkiej Policji w Szczecinie, 71-540 Szczecin, ul. Wernyhory 5 o godzinie 10:00 pokój nr 1, komisja powołana Decyzją nr 95/2024 Komendanta Wojewódzkiego Policji w Szczecinie z dnia 26 kwietnia 2024 roku przeprowadziła przetarg publiczny na sprzedaż zbędnych lub zużytych składników rzeczowych majątku ruchomego na podstawie przepisów rozporządzenia Rady Ministrów z dnia 21.09.2019r w sprawie szczegółowego sposobu gospodarowania składnikami rzeczowymi majątku ruchomego Skarbu Państwa (Dz.U . z 2023 r. poz. 2303 i 2678)
A7: LP | E7: VIN | F7: POJEMNOŚĆ | G7: PRZEBIEG | H7: UWAGI | I7: WARTOŚĆ SPRZĘTU/ CENA WYWOŁAWCZA | J7: NAJWYŻSZA CENA ZAOFEROWANA ZA PRZEDMIOT SPRZEDAŻY | K7: WYSOKOŚĆ CENY NABYCIA | L7: KWOTA, JAKĄ NABYWCA UIŚCIŁ NA POCZET CENY (WADIUM) | M7: INFORMACJA O UISZCZENIU CENY NABYCIA W TERMINIE ZGONIE Z ART. 22 UST. 1 ROZPORZĄDZENIA | N7: DANE NABYWCY PRZEDMIOTU W PRZETARGU PUBLICZNYM
A8: 1. | M8: UISZCZONO
A9: 2. | M9: UISZCZONO
A10: 3. | M10: UISZCZONO
A11: RAZEM | J11: =SUM(J8:J10) -> 0 | K11: =SUM(K8:K10) -> 0 | L11: =SUM(L8:L10) -> 0
A13: Wnioski i oświadczenia członków komisji przetargowej:
A14: Ogłoszenie o przetargu zostało umieszczone na stronie internetowej Biuletynu Informacji Publicznej Komendy Wojewódzkiej Policji w Szczecinie, zakładka – informacja o składnikach majątku.
A15: W wyniku przeprowadzonego przetargu publicznego sprzedano……….środki transportu. Zestawienie ofert, które wpłynęły w odpowiedzi na ogłoszenie o przetargu publicznym zostało przedstawione w załączniku nr 1 do protokołu.
A16: Nabywcy zostali poinformowani o 7 dniowym terminie finalizacji zakupu po otrzymaniu dowodu sprzedaży (faktury).
A17: W wyniku sprzedaży uzyskano kwotę: …………..zł.
A18: Komisja proponuje podjąć próbę przeprowadzenia drugiego przetargu publicznego, obniżając cenę wywoławczą o 20% od pierwotnie określonej wartości sprzętu/ceny wywoławczej.
A19: Imiona, nazwiska oraz podpisy składu komisji przetargowej:
A20: członkowie:
A21: a) Kinga Dulewicz- Kierownik sekcji eksploatacji | J21: ………………………………………………………
A23: b) Jacek Tiede – Kierownik sekcji wsparcia technicznego w Szczecinie | J23: ………………………………………………………
A25: c) Alina Smolińska- specjalista Wydziału Transportu | J25: ………………………………………………………
A29: b) Piotr Wnuk – Kierownik sekcji wsparcia technicznego w Koszalinie | J29: ………………………………………………………

Sheet załacznik nr 1
A1: OGŁOSZENIE O ROZSTRZYGNIĘCIU PRZETARGU PUBLICZNEGO Z DNIA ……………… (zagospodarowanie poprzez sprzedaż) | H1: Szczecin, dnia 08.10.2024r
A2: ……………………………………… | H2: (miejscowość, data)
A3: (podpis kierownika jednostki organizacyjnej Policji/ osoby upoważnionej)
A6: ZESTAWIENIE OFERT, KTÓRE WPŁYNEŁY W ODPOWIEDZI NA OGŁOSZENIE O PRZETARGU PUBLICZNYM
A8: Na podstawie przepisów rozporządzenia Rady Ministrów z dnia 21 października 2019 r. w sprawie szczegółowego sposobu gospodarowania składnikami rzeczowymi majątku ruchomego Skarbu Państwa (Dz.U . z 2023 r. poz. 2303 i 2678), komisja przedkłada zestawieni ofert z otwarcia
A12: LP | B12: MARKA I TYP POJAZDU | C12: ROK PROD. | D12: NR WEW. | E12: Sprzęt zbędny/zużyty | F12: Sposób zagospodarowania | G12: Złożone oferty | H12: Uwagi
A13: 1 | E13: zużyty | F13: sprzedaż
A14: 2 | E14: zużyty | F14: sprzedaż
A15: W wyniku przeprowadzonego przetargu publicznego sprzedano……….środki transportu. Zestawienie ofert, które wpłynęły w odpowiedzi na ogłoszenie o przetargu publicznym zostało przedstawione w załączniku nr 1 do protokołu. | E15: zużyty | F15: sprzedaż
A16: 4 | E16: zużyty | F16: sprzedaż
A17: W wyniku sprzedaży uzyskano kwotę: …………..zł. | E17: zużyty | F17: sprzedaż
A18: 6 | E18: zużyty | F18: sprzedaż
A19: 7 | E19: zużyty | F19: sprzedaż
A20: 8 | E20: zużyty | F20: sprzedaż
A21: 9 | E21: zużyty | F21: sprzedaż
A22: 10 | E22: zużyty | F22: sprzedaż
A23: 11 | E23: zużyty | F23: sprzedaż
A24: 12 | E24: zużyty | F24: sprzedaż
F27: Podpisy członków komisji:
F30: 1) ………………………………………
F33: 2) ………………………………………
F36: 3) ………………………………………

Sheet ROZSTRZYGNIĘCIE
A1: OGŁOSZENIE O ROZSTRZYGNIĘCIU PRZETARGU PUBLICZNEGO Z DNIA ……………… (zagospodarowanie poprzez sprzedaż)
A3: Komenda Wojewódzka Policji w Szczecinie informuje, iż w przetargu publicznym dotyczącym zagospodarowania poprzez sprzedaż składników rzeczowych majątku ruchomego, najkorzystniejsze oferty na środki transportu zaoferowali:
A5: LP | B5: MARKA I TYP POJAZDU | C5: NR WEWNĘTRZNY | D5: DANE OFERENTA Z NAJKORZYSTNIEJSZĄ OFERTĄ
A6: 1
A7: 2
A8: 3
A15: W wyniku przeprowadzonego przetargu publicznego sprzedano……….środki transportu. Zestawienie ofert, które wpłynęły w odpowiedzi na ogłoszenie o przetargu publicznym zostało przedstawione w załączniku nr 1 do protokołu.
A17: W wyniku sprzedaży uzyskano kwotę: …………..zł.
